Workbook

Sheet Eingabe
B2: =Translation!A2 -> Consumption costs of instanteaneous water heaters | O2: =Translation!A37 -> Extended options
B4: =Translation!A3 -> Number of inhabitants ? | P4: =Translation!A28 -> Average shower temperature | T4: =Berechnung!D5&" °C" -> 38 °C
K6: =IF(Berechnung!A5=1,Berechnung!A5&" "&Translation!A5,Berechnung!A5&" "&Translation!A4) -> 4 persons in the household | P6: =Translation!A29 -> Average cold water temperature | T6: =Berechnung!E5&" °C" -> 10 °C
B8: =Translation!A6 -> Shower operations per week and person ? | P8: =Translation!A30 -> Heating capacity | T8: =Berechnung!F5&" KW" -> 21 KW
K10: =IF(Berechnung!B5=1,Berechnung!B5&" "&Translation!A8,Berechnung!B5&" "&Translation!A7) -> 4 showers per week | P10: =Translation!A31 -> Flow quantity shower | T10: =FIXED(Berechnung!G5,0)&" "&Translation!A22 -> 8 liter/minute
B12: =Translation!A9 -> Average shower time per person ? | P12: =Translation!A32 -> Annual usage | T12: =IF(Berechnung!H5=1,Berechnung!H5&" "&Translation!A27,Berechnung!H5&" "&Translation!A26) -> 49 weeks/year
K14: =IF(Berechnung!C5=1,Berechnung!C5&" "&Translation!A11,Berechnung!C5&" "&Translation!A10) -> 7 minutes per week | P14: =Translation!A33 -> Fresh and waste water costs | T14: =FIXED(Berechnung!I5,2)&" "&Translation!A25 -> 4,50 Euro/m³
P16: =Translation!A34 -> Electricity costs | T16: =Berechnung!J5&" Cent/kWh" -> 24 Cent/kWh
B18: =Translation!A12 -> Results | J18: =Translation!A13 -> Electronic | L18: =Translation!A14 -> Hydraulic | N18: ="> "&Translation!A37 -> > Extended options | O18: ="< "&Translation!A35 -> < Fade out
B20: =Translation!A15 -> Water consumption | J20: =Berechnung!E17 -> 43,9 m³/year | L20: =Berechnung!F17 -> 59,0 m³/year | O20: =IF(Berechnung!G5>Berechnung!G7,"Der max. Durchfluss bei gewählter Leistung und Temperaturniveau beträgt "&FIXED(Berechnung!G7,1)&" Liter/Minute.","") -> 
B22: =Translation!A16 -> Water costs | J22: =Berechnung!E18 -> 198 Euro/year | L22: =Berechnung!F18 -> 265 Euro/year
B24: =Translation!A17 -> Energy consumption | J24: =Berechnung!E19 -> 1.458,9 kWh/year | L24: =Berechnung!F19 -> 1.960,0 kWh/year
B26: =Translation!A18 -> Energy costs | J26: =Berechnung!E20 -> 350 Euro/year | L26: =Berechnung!F20 -> 470 Euro/year
B28: =Translation!A19 -> Total costs | J28: =Berechnung!E21 -> 548 Euro/year | L28: =Berechnung!F21 -> 736 Euro/year
B30: =Translation!A20 -> Savings | J30: =Berechnung!E22&" ("&Berechnung!E23&")" -> 188 Euro/year (25,6 %)
L33: IMT/TR 09/12

Sheet Berechnung (hidden)
A2: Eingabewerte
A3: Personen | B3: Häufigkeit | C3: Dauer | D3: Duschtemp | E3: KW-Temp | F3: Leistung DE | G3: Durchfluss | H3: Nutzung | I3: Kosten Wasser | J3: Kosten Strom | K3: Sprache
B4: Duschen pro Woche | C4: min/Dusche | D4: °C | E4: °C | F4: KW | G4: l/min | H4: Woche pro Jahr | I4: €/m³ | J4: Cent/kWh
A5: 4 | B5: 4 | C5: 7 | D5: =MAX(D7,E5+1) -> 38 | E5: 10 | F5: =VLOOKUP(F7,G13:H33,2,FALSE) -> 21 | G5: =MIN(G7:G8) -> 8 | H5: 49 | I5: =I7/10 -> 4.5 | J5: 24 | K5: 2 | L5: =VLOOKUP(K5,K6:L25,2,FALSE) -> | English
D6: Scrollwert | F6: Scrollwert | I6: Scrollwert | K6: 1 | L6: | Deutsch
D7: 38 | F7: 9 | G7: =F5*1000/((D5-E5)*1.163*60) -> 10.74806535 | I7: 45 | K7: 2 | L7: | English
G8: 8 | K8: 3 | L8: | Nederlands
K9: 4 | L9: | Francais
K10: 5 | L10: | Suomi
A11: Wert | C11: Berechnung | E11: Ausgabe | G11: Scrollwerte Leistung | K11: 6 | L11: | Espanol
C12: Elektronisch | D12: Hydraulisch | E12: Elektronisch | F12: Hydraulisch
A13: Warmwasserverbrauch [m³/a] | C13: =A5*B5*C5*H5*G5/1000 -> 43.904 | D13: =C13 -> 43.904 | E13: =FIXED(C13,2)&" "&Translation!A21 -> 43,90 m³/year | F13: =FIXED(D13,2)&" "&Translation!A21 -> 43,90 m³/year | G13: 1 | H13: 2.7
A14: Erzeugte WW-Temperatur [°C] | C14: =D5 -> 38 | D14: =MIN(60,F5*1000/(1.163*G5*60)+E5) -> 47.61822872 | E14: =FIXED(C14,1)&" °C" -> 38,0 °C | F14: =FIXED(D14,1)&" °C" -> 47,6 °C | G14: 2 | H14: 3.2
A15: Kaltwasserbeimischung [l/min] | C15: 0 | D15: =G5*(D14-E5)/(D5-E5)-G5 -> 2.748065348 | E15: =FIXED(C15,2)&" "&Translation!A22 -> 0,00 liter/minute | F15: =FIXED(D15,2)&" "&Translation!A22 -> 2,75 liter/minute | G15: 3 | H15: 4
A16: Kaltwasserverbrauch [m³/a] | C16: 0 | D16: =D15*A5*B5*C5*H5/1000 -> 15.08138263 | E16: =FIXED(C16,2)&" "&Translation!A22 -> 0,00 liter/minute | F16: =FIXED(D16,2)&" "&Translation!A21 -> 15,08 m³/year | G16: 4 | H16: 6
A17: Wasserverbrauch-gesamt [m³/Jahr] | C17: =C13+C16 -> 43.904 | D17: =D13+D16 -> 58.98538263 | E17: =FIXED(C17,1)&" "&Translation!A21 -> 43,9 m³/year | F17: =FIXED(D17,1)&" "&Translation!A21 -> 59,0 m³/year | G17: 5 | H17: 8
A18: Wasserkosten [Euro/Jahr] | C18: =C17*I5 -> 197.568 | D18: =D17*I5 -> 265.4342218 | E18: =FIXED(C18,0)&" "&Translation!A24 -> 198 Euro/year | F18: =FIXED(D18,0)&" "&Translation!A24 -> 265 Euro/year | G18: 6 | H18: 12
A19: Energiebedarf [kWh/Jahr] | C19: =C13*1.163*(C14-E5)/0.98 -> 1458.8672 | D19: =D13*1.163*(D14-E5)/0.98 -> 1960 | E19: =FIXED(C19,1)&" "&Translation!A23 -> 1.458,9 kWh/year | F19: =FIXED(D19,1)&" "&Translation!A23 -> 1.960,0 kWh/year | G19: 7 | H19: 12
A20: Energiekosten [Euro/Jahr] | C20: =C19*J5/100 -> 350.128128 | D20: =D19*J5/100 -> 470.4 | E20: =FIXED(C20,0)&" "&Translation!A24 -> 350 Euro/year | F20: =FIXED(D20,0)&" "&Translation!A24 -> 470 Euro/year | G20: 8 | H20: 18
A21: Gesamtkosten [Euro/Jahr] | C21: =C18+C20 -> 547.696128 | D21: =D18+D20 -> 735.8342218 | E21: =FIXED(C21,0)&" "&Translation!A24 -> 548 Euro/year | F21: =FIXED(D21,0)&" "&Translation!A24 -> 736 Euro/year | G21: 9 | H21: 21
A22: Einsparung DHE [Euro/Jahr] | C22: =D21-C21 -> 188.1380938 | E22: =FIXED(C22,0)&" "&Translation!A24 -> 188 Euro/year | G22: 10 | H22: 24
A23: Einsparung DHE [%] | C23: =100*C22/D21 -> 25.568 | E23: =FIXED(C23,1)&" %" -> 25,6 % | G23: 11 | H23: 27
G24: 12 | H24: 36
G25: 13 | H25: 45
G26: 14 | H26: 60
G27: 15 | H27: 90

Sheet Translation
A1: Englisch | B1: Deutsch | C1: Englisch
A2: Consumption costs of instanteaneous water heaters | B2: Verbrauchskosten Durchlauferhitzer | C2: Consumption costs of instanteaneous water heaters
A3: Number of inhabitants ? | B3: Wieviele Personen wohnen im Haushalt ? | C3: Number of inhabitants ?
A4: persons in the household | B4: Personen im Haushalt | C4: persons in the household
A5: person in the household | B5: Person im Haushalt | C5: person in the household
A6: Shower operations per week and person ? | B6: Wie oft duscht jede Person in einer Woche ? | C6: Shower operations per week and person ?
A7: showers per week | B7: Duschen pro Woche | C7: showers per week
A8: shower per week | B8: Dusche pro Woche | C8: shower per week
A9: Average shower time per person ? | B9: Wie lange duscht jede Person durchschnittlich ? | C9: Average shower time per person ?
A10: minutes per week | B10: Minuten pro Dusche | C10: minutes per week
A11: minute per week | B11: Minute pro Dusche | C11: minute per week
A12: Results | B12: Ergebnisse | C12: Results
A13: Electronic | B13: Elektronisch | C13: Electronic
A14: Hydraulic | B14: Hydraulisch | C14: Hydraulic
A15: Water consumption | B15: Wasserverbrauch | C15: Water consumption
A16: Water costs | B16: Wasserkosten | C16: Water costs
A17: Energy consumption | B17: Energieverbrauch | C17: Energy consumption
A18: Energy costs | B18: Energiekosten | C18: Energy costs
A19: Total costs | B19: Gesamtkosten | C19: Total costs
A20: Savings | B20: Ersparnis | C20: Savings
A21: m³/year | B21: m³/Jahr | C21: m³/year
A22: liter/minute | B22: Liter/Minute | C22: liter/minute
A23: kWh/year | B23: kWh/Jahr | C23: kWh/year
A24: Euro/year | B24: Euro/Jahr | C24: Euro/year
A25: Euro/m³ | B25: Euro/m³ | C25: Euro/m³
A26: weeks/year | B26: Wochen/Jahr | C26: weeks/year
A27: week/year | B27: Woche/Jahr | C27: week/year
A28: Average shower temperature | B28: Mittlere Duschtemperatur | C28: Average shower temperature
A29: Average cold water temperature | B29: Mittlere Kaltwassertemperatur | C29: Average cold water temperature
A30: Heating capacity | B30: Leistungsgröße Durchlauferhitzer | C30: Heating capacity
A31: Flow quantity shower | B31: Durchflussmenge Dusche | C31: Flow quantity shower
A32: Annual usage | B32: Jährliche Nutzungsdauer | C32: Annual usage
A33: Fresh and waste water costs | B33: Kosten Frisch- und Abwasser | C33: Fresh and waste water costs
A34: Electricity costs | B34: Stromkosten | C34: Electricity costs
A35: Fade out | B35: ausblenden | C35: Fade out
A36: | Reset | B36: | zurücksetzen | C36: | Reset
A37: Extended options | B37: Weitere Optionen | C37: Extended options
